fUSD/lending_fUSD_20250811
["ID","MTS","AMOUNT","RATE_DAILY","PERIOD"]
[378639899,1754935858656,-566.38,0.00016986,2]
[378639900,1754935858666,-400.0,0.00016986,2]
[378639901,1754935858677,-423.82,0.00016986,2]
[378639902,1754935858686,-400.0,0.00016986,2]
[378639903,1754935858695,-1427.98,0.00016986,2]
[378639904,1754935858704,-400.0,0.00016986,2]
[378639905,1754935858714,-400.0,0.00016986,2]
[378639906,1754935858723,-400.0,0.00016986,2]
[378639907,1754935858732,-447.88,0.00016986,2]
[378639908,1754935858742,-400.0,0.00016986,2]
[378639909,1754935858751,-151.0,0.00016986,2]
[378639910,1754935858760,-400.0,0.00016986,2]
[378639911,1754935858769,-400.0,0.00016986,2]
[378639912,1754935858779,-400.0,0.00016986,2]
[378639913,1754935858788,-1922.72,0.00016986,2]
[378639914,1754935858797,-400.0,0.00016986,2]
[378639915,1754935858807,-400.0,0.00016986,2]
[378639916,1754935858816,-151.0,0.00016986,2]
[378639917,1754935858825,-454.13,0.00016986,2]
[378639918,1754935858834,-400.0,0.00016986,2]
[378639919,1754935858845,-400.0,0.00016986,2]
[378639920,1754935858854,-400.0,0.00016986,2]
[378639921,1754935858863,-400.0,0.00016986,2]
[378639922,1754935858873,-400.0,0.00016986,2]
[378639923,1754935858882,-400.0,0.00016986,2]
[378639924,1754935858891,-151.0,0.00016986,2]
[378639925,1754935858901,-400.0,0.00016986,2]
[378639926,1754935858910,-1107.68,0.00016986,2]
[378639927,1754935858920,-1241.4,0.00016986,2]
[378639928,1754935858929,-597.44,0.00016986,2]
[378639929,1754935858939,-609.92,0.00016986,2]
[378639930,1754935858948,-400.0,0.00016986,2]
[378639931,1754935858957,-525.8,0.00016986,2]
[378639932,1754935858967,-400.0,0.00016986,2]
[378639933,1754935858977,-400.0,0.00016986,2]
[378639934,1754935858986,-400.0,0.00016986,2]
[378639935,1754935858996,-469.59,0.00016986,2]
[378639936,1754935859006,-400.0,0.00016986,2]
[378639937,1754935859015,-342.30877279,0.00016986,2]
[378639938,1754935859024,-151.0,0.00016986,2]
[378639939,1754935859033,-400.8,0.00016986,2]
[378639940,1754935859043,-400.0,0.00016986,2]
[378639941,1754935859052,-400.0,0.00016986,2]
[378639942,1754935859061,-400.0,0.00016986,2]
[378639943,1754935859070,-417.23,0.00016986,2]
[378639944,1754935859080,-640.06,0.00016986,2]
[378639945,1754935859093,-400.0,0.00016986,2]
[378639946,1754935859103,-257.0887587,0.00016986,2]
[378639947,1754935859113,-400.0,0.00016986,2]
[378639948,1754935859123,-837.26,0.00016986,2]
[378639949,1754935859133,-541.46,0.00016986,2]
[378639950,1754935859143,-636.38,0.00016986,2]
[378639951,1754935859152,-400.0,0.00016986,2]
[378639952,1754935859162,-400.0,0.00016986,2]
[378639953,1754935859171,-400.0,0.00016986,2]
[378639954,1754935859181,-400.0,0.00016986,2]
[378639955,1754935859192,-400.0,0.00016986,2]
[378639956,1754935859202,-400.0,0.00016986,2]
[378639957,1754935859211,-178.31753327,0.00016986,2]
[378639958,1754935859220,-400.0,0.00016986,2]
[378639959,1754935859230,-400.0,0.00016986,2]
[378639960,1754935859239,-400.0,0.00016986,2]
[378639961,1754935859248,-1210.72,0.00016986,2]
[378639962,1754935859257,-400.0,0.00016986,2]
[378639963,1754935859267,-529.43,0.00016986,2]
[378639964,1754935859276,-526.91,0.00016986,2]
[378639965,1754935859285,-151.0,0.00016986,2]
[378639966,1754935859295,-705.77,0.00016986,2]
[378639967,1754935859304,-400.0,0.00016986,2]
[378639968,1754935859314,-657.77,0.00016986,2]
[378639969,1754935859326,-494.14,0.00016986,2]
[378639970,1754935859336,-512.45,0.00016986,2]
[378639971,1754935859347,-402.88133681,0.00016986,2]
[378639972,1754935859356,-422.86598655,0.00016986,2]
[378639973,1754935859366,-400.0,0.00016986,2]
[378639974,1754935859378,-430.74,0.00016986,2]
[378639975,1754935859389,-400.0,0.00016986,2]
[378639976,1754935859398,-400.0,0.00016986,2]
[378639977,1754935859408,-429.21,0.00016986,2]
[378639978,1754935859417,-400.0,0.00016986,2]
[378639979,1754935859427,-508.13,0.00016986,2]
[378639980,1754935859436,-400.0,0.00016986,2]
[378639981,1754935859445,-400.0,0.00016986,2]
[378639982,1754935859455,-400.0,0.00016986,2]
[378639983,1754935859464,-400.0,0.00016986,2]
[378639984,1754935859474,-482.7,0.00016986,2]
[378639985,1754935859483,-400.0,0.00016986,2]
[378639986,1754935859494,-400.0,0.00016986,2]
[378639987,1754935859503,-421.69,0.00016986,2]
[378639988,1754935859512,-400.0,0.00016986,2]
[378639989,1754935859521,-448.19,0.00016986,2]
[378639990,1754935859530,-400.0,0.00016986,2]
[378639991,1754935859539,-400.0,0.00016986,2]
[378639992,1754935859549,-400.0,0.00016986,2]
[378639993,1754935859559,-935.16,0.00016986,2]
[378639994,1754935859569,-400.0,0.00016986,2]
[378639995,1754935859582,-400.0,0.00016986,2]
[378639996,1754935859592,-400.0,0.00016986,2]
[378639997,1754935859602,-151.0,0.00016986,2]
[378639998,1754935859612,-400.0,0.00016986,2]
[378639999,1754935859621,-400.0,0.00016986,2]
[378640000,1754935859630,-400.0,0.00016986,2]
[378640001,1754935859639,-400.0,0.00016986,2]
[378640002,1754935859649,-400.0,0.00016986,2]
[378640003,1754935859659,-400.0,0.00016986,2]
[378640004,1754935859668,-400.0,0.00016986,2]
[378640005,1754935859677,-400.0,0.00016986,2]
[378640006,1754935859688,-587.69,0.00016986,2]
[378640007,1754935859697,-400.0,0.00016986,2]
[378640008,1754935859706,-509.56,0.00016986,2]
[378640009,1754935859715,-400.0,0.00016986,2]
[378640010,1754935859724,-1203.6,0.00016986,2]
[378640011,1754935859735,-429.72,0.00016986,2]
[378640012,1754935859744,-400.0,0.00016986,2]
[378640013,1754935859753,-400.0,0.00016986,2]
[378640014,1754935859762,-400.0,0.00016986,2]
[378640015,1754935859772,-400.0,0.00016986,2]
[378640016,1754935859782,-661.75,0.00016986,2]
[378640017,1754935859791,-400.0,0.00016986,2]
[378640018,1754935859805,-400.0,0.00016986,2]
[378640019,1754935859814,-400.0,0.00016986,2]
[378640020,1754935859823,-3512.13,0.00016986,2]
[378640021,1754935860139,-400.0,0.00016986,2]
[378640022,1754935860162,-514.97,0.00016986,2]
[378640023,1754935860172,-400.0,0.00016986,2]
[378640024,1754935860182,-442.3,0.00016986,2]
[378640025,1754935860192,-400.0,0.00016986,2]
[378640026,1754935860202,-400.0,0.00016986,2]
[378640027,1754935860211,-400.0,0.00016986,2]
[378640028,1754935860221,-400.0,0.00016986,2]
[378640029,1754935860231,-1000.0,0.00016986,2]
[378640030,1754935860240,-400.0,0.00016986,2]
[378640031,1754935860249,-521.68,0.00016986,2]
[378640032,1754935860259,-400.0,0.00016986,2]
[378640033,1754935860268,-400.0,0.00016986,2]
[378640034,1754935860277,-1724.7,0.00016986,2]
[378640035,1754935860287,-400.0,0.00016986,2]
[378640036,1754935860296,-400.0,0.00016986,2]
[378640037,1754935860306,-400.0,0.00016986,2]
[378640038,1754935860316,-400.0,0.00016986,2]
[378640039,1754935860325,-452.03,0.00016986,2]
[378640040,1754935860334,-400.0,0.00016986,2]
[378640041,1754935860345,-400.0,0.00016986,2]
[378640042,1754935860354,-400.0,0.00016986,2]
[378640043,1754935860363,-400.0,0.00016986,2]
[378640044,1754935860373,-490.70574994,0.00016986,2]
[378640045,1754935860383,-998.21,0.00016986,2]
[378640046,1754935860392,-400.0,0.00016986,2]
[378640047,1754935860401,-400.0,0.00016986,2]
[378640048,1754935860412,-633.41,0.00016986,2]
[378640049,1754935860421,-400.0,0.00016986,2]
[378640050,1754935860431,-400.0,0.00016986,2]
[378640051,1754935860440,-400.0,0.00016986,2]
[378640052,1754935860450,-400.0,0.00016986,2]
[378640053,1754935860459,-1011.28,0.00016986,2]
[378640054,1754935860469,-427.57,0.00016986,2]
[378640055,1754935860478,-400.0,0.00016986,2]
[378640056,1754935860488,-2451.1,0.00016986,2]
[378640057,1754935860497,-400.0,0.00016986,2]
[378640058,1754935860506,-632.01,0.00016986,2]
[378640059,1754935860516,-529.95,0.00016986,2]
[378640060,1754935860526,-727.61,0.00016986,2]
[378640061,1754935860535,-400.0,0.00016986,2]
[378640062,1754935860544,-400.0,0.00016986,2]
[378640063,1754935860553,-579.92,0.00016986,2]
[378640064,1754935860565,-423.38,0.00016986,2]
[378640065,1754935860574,-400.0,0.00016986,2]
[378640066,1754935860583,-1231.53,0.00016986,2]
[378640067,1754935860593,-818.91,0.00016986,2]
[378640068,1754935860603,-522.86,0.00016986,2]
[378640069,1754935860612,-434.96,0.00016986,2]
[378640070,1754935860621,-400.0,0.00016986,2]
[378640071,1754935860630,-812.85,0.00016986,2]
[378640072,1754935860640,-482.87,0.00016986,2]
[378640073,1754935860649,-400.0,0.00016986,2]
[378640074,1754935860658,-400.0,0.00016986,2]
[378640075,1754935860667,-553.07,0.00016986,2]
[378640076,1754935860677,-543.32,0.00016986,2]
[378640077,1754935860686,-151.0,0.00016986,2]
[378640078,1754935860697,-585.44,0.00016986,2]
[378640079,1754935860706,-400.0,0.00016986,2]
[378640080,1754935860715,-400.0,0.00016986,2]
[378640081,1754935860728,-400.0,0.00016986,2]
[378640082,1754935860737,-609.49,0.00016986,2]
[378640083,1754935860747,-490.55,0.00016986,2]
[378640084,1754935860756,-567.33,0.00016986,2]
[378640085,1754935860765,-400.0,0.00016986,2]
[378640086,1754935860776,-400.0,0.00016986,2]
[378640087,1754935860785,-7073.33,0.00016986,2]
[378640088,1754935860796,-803.88,0.00016986,2]
[378640089,1754935860806,-400.0,0.00016986,2]
[378640090,1754935860816,-400.0,0.00016986,2]
[378640091,1754935860826,-400.0,0.00016986,2]
[378640092,1754935860836,-498.53,0.00016986,2]
[378640093,1754935860848,-400.0,0.00016986,2]
[378640094,1754935860858,-664.92,0.00016986,2]
[378640095,1754935860867,-967.77,0.00016986,2]
[378640096,1754935860877,-671.84,0.00016986,2]
[378640097,1754935860886,-400.0,0.00016986,2]
[378640098,1754935860896,-845.57,0.00016986,2]
[378640099,1754935860906,-400.0,0.00016986,2]
[378640100,1754935860916,-1124.77,0.00016986,2]
[378640101,1754935860926,-493.93898495,0.00016986,2]
[378640102,1754935861358,-397.14101505,0.00016986,2]
[378640103,1754935861368,-190.85898495,0.00016986,2]
[378640104,1754935887448,244.6,0.00015352,2]
[378640105,1754935969656,150.0,9.7e-05,2]
[378640106,1754935970081,150.0,0.0001088,2]
[378640107,1754935978408,436.94,0.00015863,2]
[378640108,1754935978841,436.94,0.00015872,2]
[378640109,1754935979060,436.94,0.0001588,2]
[378640110,1754935979291,436.94,0.00015888,2]
[378640111,1754935979529,436.94,0.00015897,2]
[378640112,1754935979745,436.94,0.00015905,2]
[378640113,1754935979951,436.94,0.00015913,2]
[378640114,1754935980209,436.94,0.00015922,2]
[378640115,1754935980424,436.94,0.0001593,2]
[378640116,1754935980685,436.94,0.00015938,2]
[378640117,1754935980931,436.94,0.00015947,2]
[378640118,1754935981189,436.94,0.00015955,2]
[378640119,1754935981508,436.94,0.00015964,2]
[378640120,1754935981723,436.94,0.00015972,2]
[378640121,1754935982086,436.94,0.0001598,2]
[378640122,1754935982302,436.94,0.00015989,2]
[378640123,1754935982850,436.94,0.00015997,2]
[378640124,1754936002576,506.34,0.00015792,2]
[378640125,1754936092322,203.89953357,0.00021918,120]
[378640128,1754936165650,1000.0,0.00015729,2]
[378640129,1754936168850,170.0,0.00015725,7]
[378640130,1754936225262,158.56,0.00015723,2]
[378640132,1754936245422,348.81,0.00015723,2]
[378640133,1754936256352,162.77,0.0001567,2]
[378640134,1754936387141,1315.27,0.00015674,2]
[378640135,1754936407107,2475.62,0.00015725,2]
[378640136,1754936407708,5332.44,0.0001566,2]
[378640138,1754936445818,509.0,0.00015783,2]
[378640139,1754936452217,250.0,0.00015624,2]
[378640141,1754936510077,243.36,0.00013699,2]
[378640143,1754936562427,150.0,0.0001557,2]
[378640144,1754936673201,205.99,0.00015586,2]
[378640145,1754936734094,1475.02,0.00015584,2]
[378640147,1754936763504,500.0,0.00015594,2]
[378640148,1754936792885,23900.0,0.00015611,2]
[378640150,1754936832338,769.31992322,0.0002301,120]
[378640151,1754936845050,-436.94,0.00016005,2]
[378640152,1754936845078,-436.94,0.00016014,2]
[378640153,1754936845105,-436.94,0.00016022,2]
[378640154,1754936845132,-205.99,0.00016171,2]
[378640155,1754936845157,-166.74,0.00016238,2]
[378640156,1754936845184,-509.0,0.00016308,2]
[378640157,1754936845210,-185.92315973,0.00016331,2]
[378640158,1754936845236,-194.80038658,0.00016331,2]
[378640159,1754936845263,-183.6687917,0.00016331,2]
[378640160,1754936845292,-84.05766199,0.00016331,2]
[378640161,1754936887297,-231.28369723,0.00016328,2]
[378640162,1754936887322,-299.71630277,0.0001633,2]
[378640163,1754936925430,-0.28369723,0.0001633,2]
[378640164,1754936925456,-250.0,0.0001633,2]
[378640165,1754936925481,-300.0,0.00016332,2]
[378640166,1754936925508,-1172.71630277,0.00016332,2]
[378640167,1754936934027,247.0,0.0001596,2]
[378640168,1754936934342,247.0,0.0001565,2]
[378640169,1754936934672,247.0,0.0001533,2]
[378640170,1754936934966,247.0,0.0001502,2]
[378640185,1754937032168,-247.0,0.0001628,2]
[378640186,1754937032179,-250.0,0.00016294,2]
[378640187,1754937032190,-329.8875,0.00016308,2]
[378640188,1754937032201,-1200.0,0.00016336,2]
[378640189,1754937032211,-167.41562477,0.00016337,2]
[378640190,1754937032221,-449.49266346,0.00016337,2]
[378640191,1754937032281,-50.50733654,0.00016337,2]
[378640192,1754937032291,-164.56838194,0.00016337,2]
[378640193,1754937032302,-550.0,0.00016337,2]
[378640194,1754937032311,-3324.77843661,0.00016338,2]
[378640195,1754937032324,-300.48897229,0.00016338,2]
[378640196,1754937032364,-239.2261078,0.00016338,2]
[378640197,1754937032374,-171.08262018,0.00016338,2]
[378640198,1754937032384,-167.21993701,0.00016338,2]
[378640199,1754937032394,-622.37323767,0.00016338,2]
[378640200,1754937032404,-3166.72926871,0.00016338,2]
[378640201,1754937032414,-2234.20882863,0.00016338,2]
[378640202,1754937032445,-1604.50486129,0.00016338,2]
[378640203,1754937032459,-13410.34871008,0.00016338,2]
[378640204,1754937032469,-351.9251,0.00016338,2]
[378640205,1754937032479,-697.9982,0.00016338,2]
[378640206,1754937032489,-595.1956,0.00016338,2]
[378640207,1754937032500,-5000.0,0.00016338,2]
[378640208,1754937032509,-645.7721,0.00016338,2]
[378640209,1754937032519,-163.28,0.00016428,2]
[378640210,1754937032529,-160.0,0.00016428,2]
[378640211,1754937032539,-500.0,0.00016428,2]
[378640212,1754937032550,-151.0,0.00016428,2]
[378640213,1754937032559,-500.0,0.00016428,2]
[378640215,1754937032570,-151.0,0.00016428,2]
[378640217,1754937032582,-500.0,0.00016428,2]
[378640221,1754937032592,-600.0,0.00016428,2]
[378640223,1754937032602,-346.92554585,0.00016428,2]
[378640225,1754937032612,-500.0,0.00016428,2]
[378640227,1754937032621,-500.0,0.00016428,2]
[378640229,1754937032631,-500.0,0.00016428,2]
[378640231,1754937032641,-500.0,0.00016428,2]
[378640232,1754937032650,-500.0,0.00016428,2]
[378640233,1754937032660,-500.0,0.00016428,2]
[378640234,1754937032669,-500.0,0.00016428,2]
[378640235,1754937032679,-500.0,0.00016428,2]
[378640236,1754937032688,-500.0,0.00016428,2]
[378640237,1754937032702,-500.0,0.00016428,2]
[378640238,1754937032711,-500.0,0.00016428,2]
[378640239,1754937032722,-500.0,0.00016428,2]
[378640240,1754937032731,-431.33450467,0.00016428,2]
[378640241,1754937032740,-500.0,0.00016428,2]
[378640242,1754937032750,-500.0,0.00016428,2]
[378640243,1754937032759,-500.0,0.00016428,2]
[378640244,1754937032768,-500.0,0.00016428,2]
[378640245,1754937032777,-500.0,0.00016428,2]
[378640246,1754937032787,-500.0,0.00016428,2]
[378640247,1754937032796,-500.0,0.00016428,2]
[378640248,1754937032806,-500.0,0.00016428,2]
[378640249,1754937032815,-500.0,0.00016428,2]
[378640250,1754937032825,-500.0,0.00016428,2]
[378640251,1754937032835,-151.0,0.00016428,2]
[378640252,1754937032845,-500.0,0.00016428,2]
[378640253,1754937032854,-500.0,0.00016428,2]
[378640254,1754937032864,-500.0,0.00016428,2]
[378640255,1754937032874,-500.0,0.00016428,2]
[378640256,1754937032883,-500.0,0.00016428,2]
[378640257,1754937032893,-500.0,0.00016428,2]
[378640258,1754937032902,-167.64016421,0.00016428,2]
[378640259,1754937032912,-500.0,0.00016428,2]
[378640260,1754937032921,-500.0,0.00016428,2]
[378640261,1754937032931,-500.0,0.00016428,2]
[378640262,1754937032940,-300.0,0.00016428,2]
[378640263,1754937032950,-1438.09495884,0.00016428,2]
[378640264,1754937032959,-317.76167784,0.00016428,2]
[378640265,1754937032969,-200.0,0.00016428,2]
[378640266,1754937032979,-151.0,0.00016428,2]
[378640267,1754937032988,-500.0,0.00016428,2]
[378640268,1754937032998,-151.0,0.00016428,2]
[378640270,1754937033008,-250.0,0.00016428,2]
[378640271,1754937033018,-500.0,0.00016428,2]
[378640273,1754937033028,-151.0,0.00016428,2]
[378640274,1754937033038,-250.0,0.00016428,2]
[378640275,1754937033047,-151.0,0.00016428,2]
[378640276,1754937033057,-151.0,0.00016428,2]
[378640277,1754937033067,-250.0,0.00016428,2]
[378640278,1754937033077,-500.0,0.00016428,2]
[378640279,1754937033087,-151.0,0.00016428,2]
[378640280,1754937033097,-151.0,0.00016428,2]
[378640281,1754937033107,-250.0,0.00016428,2]
[378640282,1754937033117,-500.0,0.00016428,2]
[378640283,1754937033127,-500.0,0.00016428,2]
[378640284,1754937033140,-151.0,0.00016428,2]
[378640285,1754937033150,-151.0,0.00016428,2]
[378640286,1754937033160,-250.0,0.00016428,2]
[378640287,1754937033171,-209.40437685,0.00016428,2]
[378640288,1754937033181,-500.0,0.00016428,2]
[378640289,1754937033191,-500.0,0.00016428,2]
[378640290,1754937033203,-157.55548253,0.00016428,2]
[378640291,1754937033212,-151.0,0.00016428,2]
[378640292,1754937033222,-250.0,0.00016428,2]
[378640293,1754937033232,-525.47411996,0.00016428,2]
[378640294,1754937033242,-500.0,0.00016428,2]
[378640295,1754937033252,-273.47082881,0.00016428,2]
[378640296,1754937033262,-151.0,0.00016428,2]
[378640297,1754937033272,-500.0,0.00016428,2]
[378640298,1754937033282,-151.0,0.00016428,2]
[378640299,1754937033292,-500.0,0.00016428,2]
[378640300,1754937033302,-151.0,0.00016428,2]
[378640301,1754937033312,-500.0,0.00016428,2]
[378640302,1754937033321,-250.0,0.00016428,2]
[378640303,1754937033332,-151.0,0.00016428,2]
[378640304,1754937033341,-250.0,0.00016428,2]
[378640305,1754937033351,-500.0,0.00016428,2]
[378640306,1754937033360,-363.26492725,0.00016428,2]
[378640307,1754937033370,-500.0,0.00016428,2]
[378640308,1754937033379,-500.0,0.00016428,2]
[378640309,1754937033389,-200.0,0.00016428,2]
[378640310,1754937033398,-500.0,0.00016428,2]
[378640311,1754937033408,-500.0,0.00016428,2]
[378640312,1754937033421,-500.0,0.00016428,2]
[378640313,1754937033431,-500.0,0.00016428,2]
[378640314,1754937033440,-500.0,0.00016428,2]
[378640315,1754937033451,-500.0,0.00016428,2]
[378640316,1754937033463,-439.88462623,0.00016428,2]
[378640317,1754937033473,-151.0,0.00016428,2]
[378640318,1754937033484,-151.0,0.00016428,2]
[378640319,1754937033496,-250.0,0.00016428,2]
[378640320,1754937033507,-250.0,0.00016428,2]
[378640321,1754937033517,-250.0,0.00016428,2]
[378640322,1754937033527,-250.0,0.00016428,2]
[378640323,1754937033538,-250.0,0.00016428,2]
[378640324,1754937033548,-250.0,0.00016428,2]
[378640325,1754937033559,-151.0,0.00016428,2]
[378640326,1754937033569,-250.0,0.00016428,2]
[378640327,1754937033580,-250.0,0.00016428,2]
[378640328,1754937033590,-250.0,0.00016428,2]
[378640329,1754937033601,-250.0,0.00016428,2]
[378640330,1754937033611,-250.0,0.00016428,2]
[378640331,1754937033621,-250.0,0.00016428,2]
[378640332,1754937033630,-250.0,0.00016428,2]
[378640333,1754937033640,-250.0,0.00016428,2]
[378640334,1754937033650,-250.0,0.00016428,2]
[378640335,1754937033662,-400.0,0.00016438,2]
[378640336,1754937033672,-400.0,0.00016438,2]
[378640337,1754937033682,-400.0,0.00016438,2]
[378640338,1754937033693,-400.0,0.00016438,2]
[378640339,1754937033703,-401.47160999,0.00016438,2]
[378640340,1754937033712,-400.0,0.00016438,2]
[378640341,1754937033722,-400.0,0.00016438,2]
[378640342,1754937033733,-400.0,0.00016438,2]
[378640343,1754937033744,-400.0,0.00016438,2]
[378640344,1754937033755,-400.0,0.00016438,2]
[378640345,1754937033765,-400.0,0.00016438,2]
[378640346,1754937033774,-400.0,0.00016438,2]
[378640347,1754937033784,-400.0,0.00016438,2]
[378640348,1754937033794,-400.0,0.00016438,2]
[378640349,1754937033806,-400.0,0.00016438,2]
[378640350,1754937033815,-400.0,0.00016438,2]
[378640351,1754937033825,-402.83693549,0.00016438,2]
[378640352,1754937033836,-400.0,0.00016438,2]
[378640353,1754937033846,-168.35729015,0.00016438,2]
[378640354,1754937033920,-131.64270985,0.00016438,2]
[378640355,1754937033931,-400.0,0.00016438,2]
[378640356,1754937033940,-400.0,0.00016438,2]
[378640357,1754937033950,-400.0,0.00016438,2]
[378640358,1754937033959,-400.0,0.00016438,2]
[378640359,1754937033968,-400.0,0.00016438,2]
[378640360,1754937033978,-212.0187866,0.00016438,2]
[378640361,1754937033988,-400.0,0.00016438,2]
[378640362,1754937033998,-1980.11,0.00016438,2]
[378640363,1754937034007,-400.0,0.00016438,2]
[378640364,1754937034017,-400.0,0.00016438,2]
[378640365,1754937034027,-400.0,0.00016438,2]
[378640366,1754937034036,-400.0,0.00016438,2]
[378640367,1754937034045,-400.0,0.00016438,2]
[378640368,1754937034055,-1094.67588772,0.00016438,2]
[378640369,1754937034090,-170.84411228,0.00016438,2]
[378640370,1754937034099,-400.0,0.00016438,2]
[378640371,1754937034109,-400.0,0.00016438,2]
[378640372,1754937034119,-607.47,0.00016438,2]
[378640373,1754937034128,-400.0,0.00016438,2]
[378640374,1754937034139,-219.54535135,0.00016438,2]
[378640375,1754937034150,-180.45464865,0.00016438,2]
[378640376,1754937034160,-400.0,0.00016438,2]
[378640377,1754937034169,-400.0,0.00016438,2]
[378640378,1754937034179,-1033.08,0.00016438,2]
[378640379,1754937034188,-400.0,0.00016438,2]
[378640380,1754937034197,-1202.51,0.00016438,2]
[378640381,1754937034207,-761.51,0.00016438,2]
[378640382,1754937034216,-400.0,0.00016438,2]
[378640383,1754937034226,-400.0,0.00016438,2]
[378640384,1754937034235,-440.7,0.00016438,2]
[378640385,1754937034244,-400.0,0.00016438,2]
[378640386,1754937034254,-400.0,0.00016438,2]
[378640387,1754937034264,-400.0,0.00016438,2]
[378640388,1754937034274,-400.0,0.00016438,2]
[378640389,1754937034284,-344.08836642,0.00016438,2]
[378640390,1754937034293,-2119.74,0.00016438,2]
[378640391,1754937034303,-400.0,0.00016438,2]
[378640392,1754937034313,-400.0,0.00016438,2]
[378640393,1754937034322,-758.7,0.00016438,2]
[378640394,1754937034332,-403.46,0.00016438,2]
[378640395,1754937034341,-400.0,0.00016438,2]
[378640396,1754937034351,-400.0,0.00016438,2]
[378640397,1754937034360,-400.0,0.00016438,2]
[378640398,1754937034369,-422.36,0.00016438,2]
[378640399,1754937034379,-400.0,0.00016438,2]
[378640400,1754937034389,-400.0,0.00016438,2]
[378640401,1754937034398,-1009.96,0.00016438,2]
[378640402,1754937034407,-400.0,0.00016438,2]
[378640403,1754937034420,-400.0,0.00016438,2]
[378640404,1754937034430,-400.0,0.00016438,2]
[378640405,1754937034439,-705.83,0.00016438,2]
[378640406,1754937034449,-1435.4,0.00016438,2]
[378640407,1754937034459,-400.0,0.00016438,2]
[378640408,1754937034468,-400.0,0.00016438,2]
[378640409,1754937034478,-522.76,0.00016438,2]
[378640410,1754937034487,-400.0,0.00016438,2]
[378640411,1754937034498,-400.0,0.00016438,2]
[378640412,1754937034508,-400.0,0.00016438,2]
[378640413,1754937034517,-400.0,0.00016438,2]
[378640414,1754937034526,-514.23,0.00016438,2]
[378640415,1754937034536,-400.0,0.00016438,2]
[378640416,1754937034545,-400.0,0.00016438,2]
[378640417,1754937034555,-400.0,0.00016438,2]
[378640418,1754937034564,-400.0,0.00016438,2]
[378640419,1754937034573,-400.0,0.00016438,2]
[378640420,1754937034583,-815.93,0.00016438,2]
[378640421,1754937034594,-400.0,0.00016438,2]
[378640422,1754937034603,-400.0,0.00016438,2]
[378640423,1754937034612,-556.83,0.00016438,2]
[378640424,1754937034622,-400.0,0.00016438,2]
[378640425,1754937034631,-400.0,0.00016438,2]
[378640426,1754937034640,-400.0,0.00016438,2]
[378640427,1754937034649,-400.0,0.00016438,2]
[378640428,1754937034659,-400.0,0.00016438,2]
[378640429,1754937034668,-1000.0,0.00016438,2]
[378640430,1754937034677,-400.0,0.00016438,2]
[378640431,1754937034687,-400.0,0.00016438,2]
[378640432,1754937034696,-400.0,0.00016438,2]